fUSD/lending_fUSD_20250521
["ID","MTS","AMOUNT","RATE_DAILY","PERIOD"]
[361836022,1747827084582,-471.02,0.00035068,5]
[361836023,1747827084593,-933.58,0.00035068,5]
[361836024,1747827084603,-2021.44,0.00035068,5]
[361836025,1747827084614,-420.0,0.00035068,5]
[361836026,1747827084624,-420.0,0.00035068,5]
[361836027,1747827084636,-4350.06,0.00035068,5]
[361836028,1747827084646,-151.0,0.00035068,7]
[361836029,1747827084656,-749.3,0.00035068,5]
[361836030,1747827084668,-814.46,0.00035068,5]
[361836031,1747827084679,-801.9,0.00035068,5]
[361836032,1747827084689,-587.68,0.00035068,5]
[361836033,1747827084700,-3500.0,0.000351,4]
[361836034,1747827084714,-162.82,0.000351,2]
[361836035,1747827084724,-267.06,0.00035149,120]
[361836036,1747827084735,-304.20545857,0.00035242,2]
[361836037,1747827084746,-831.51979763,0.00035242,2]
[361836038,1747827084758,-300.71,0.00035246,2]
[361836039,1747827084769,-420.0,0.00035342,5]
[361836040,1747827084779,-420.0,0.00035342,5]
[361836041,1747827084790,-299.22795996,0.00035342,5]
[361836042,1747827084800,-852.08,0.00035342,5]
[361836043,1747827084811,-838.29,0.00035342,5]
[361836044,1747827084821,-756.34,0.00035342,5]
[361836045,1747827084831,-456.81,0.00035342,5]
[361836046,1747827084842,-420.0,0.00035342,5]
[361836047,1747827084852,-480.11,0.00035342,5]
[361836048,1747827084864,-420.0,0.00035342,5]
[361836049,1747827084874,-420.0,0.00035342,5]
[361836050,1747827084885,-803.54,0.00035342,5]
[361836051,1747827084895,-1218.18,0.00035342,5]
[361836052,1747827084906,-942.88,0.00035342,5]
[361836053,1747827084915,-797.13,0.00035342,5]
[361836054,1747827084926,-420.0,0.00035342,5]
[361836055,1747827084936,-420.0,0.00035342,5]
[361836056,1747827084946,-1263.34,0.00035342,5]
[361836057,1747827084956,-420.0,0.00035342,5]
[361836058,1747827084966,-420.0,0.00035342,5]
[361836059,1747827084976,-599.61,0.00035342,5]
[361836060,1747827084986,-1887.18,0.00035342,5]
[361836061,1747827084996,-151.0,0.00035342,7]
[361836062,1747827085007,-537.6,0.00035342,5]
[361836063,1747827085017,-420.0,0.00035342,5]
[361836064,1747827085028,-420.0,0.00035342,5]
[361836065,1747827085038,-151.0,0.00035342,7]
[361836066,1747827085047,-995.6,0.00035342,5]
[361836067,1747827085057,-420.0,0.00035342,5]
[361836068,1747827085067,-420.0,0.00035342,5]
[361836069,1747827085077,-692.22,0.00035342,5]
[361836070,1747827085087,-420.0,0.00035342,5]
[361836071,1747827085097,-584.19,0.00035342,5]
[361836072,1747827085107,-151.0,0.00035342,7]
[361836073,1747827085116,-420.0,0.00035342,5]
[361836074,1747827085126,-420.0,0.00035342,5]
[361836075,1747827085136,-847.72,0.00035342,5]
[361836076,1747827085146,-674.03,0.00035342,5]
[361836077,1747827085156,-420.0,0.00035342,5]
[361836078,1747827085166,-627.96,0.00035342,5]
[361836079,1747827085177,-420.0,0.00035342,5]
[361836080,1747827085187,-524.74,0.00035342,5]
[361836081,1747827085198,-278.84146109,0.00035342,5]
[361836082,1747827085208,-420.0,0.00035342,5]
[361836083,1747827085218,-1128.54,0.00035342,5]
[361836084,1747827085228,-814.71,0.00035342,5]
[361836085,1747827085238,-1370.32,0.00035342,5]
[361836086,1747827085248,-420.0,0.00035342,5]
[361836087,1747827085258,-154.426419,0.00035342,7]
[361836088,1747827085268,-574.94,0.00035342,5]
[361836089,1747827085278,-455.14,0.00035342,5]
[361836090,1747827085289,-1337.7,0.00035342,5]
[361836091,1747827085299,-478.34,0.00035342,5]
[361836092,1747827085310,-420.0,0.00035342,5]
[361836093,1747827085320,-151.0,0.00035342,7]
[361836094,1747827085330,-504.02,0.00035342,5]
[361836095,1747827085340,-565.8,0.00035342,5]
[361836096,1747827085350,-728.55,0.00035342,5]
[361836097,1747827085360,-420.0,0.00035342,5]
[361836098,1747827085370,-732.9,0.00035342,5]
[361836099,1747827085382,-420.0,0.00035342,5]
[361836100,1747827085392,-1165.23,0.00035342,5]
[361836101,1747827085402,-1378.94,0.00035342,5]
[361836102,1747827085412,-2721.26,0.00035342,5]
[361836103,1747827085424,-1472.56,0.00035342,5]
[361836104,1747827085435,-420.0,0.00035342,5]
[361836105,1747827085447,-815.36,0.00035342,5]
[361836106,1747827085457,-420.0,0.00035342,5]
[361836107,1747827085468,-3421.67,0.00035342,5]
[361836108,1747827085479,-420.0,0.00035342,5]
[361836109,1747827085488,-420.0,0.00035342,5]
[361836110,1747827085499,-2581.6,0.00035342,5]
[361836111,1747827085511,-3315.32,0.00035342,5]
[361836112,1747827085523,-1137.48,0.00035342,5]
[361836113,1747827085534,-1399.99,0.00035342,5]
[361836114,1747827085544,-2580.06,0.00035342,5]
[361836115,1747827085555,-594.98,0.00035342,5]
[361836116,1747827085566,-1980.3,0.00035342,5]
[361836117,1747827085576,-2964.03,0.00035342,5]
[361836118,1747827085588,-420.0,0.00035342,5]
[361836119,1747827085599,-420.0,0.00035342,5]
[361836120,1747827085610,-461.83,0.00035342,5]
[361836121,1747827085621,-1561.77,0.00035342,5]
[361836122,1747827085632,-420.0,0.00035342,5]
[361836123,1747827085643,-950.46,0.00035342,5]
[361836124,1747827085654,-1769.8,0.00035342,5]
[361836125,1747827085665,-498.42,0.00035342,5]
[361836126,1747827085676,-1036.55,0.00035342,5]
[361836127,1747827085687,-934.39,0.00035342,5]
[361836128,1747827085698,-3529.11,0.00035342,5]
[361836129,1747827085709,-1927.57,0.00035342,5]
[361836130,1747827085723,-1266.55,0.00035342,5]
[361836131,1747827085733,-1455.7,0.00035342,5]
[361836132,1747827085744,-2836.71,0.00035342,5]
[361836133,1747827085755,-760.46,0.00035342,5]
[361836134,1747827085766,-1060.83,0.00035342,5]
[361836135,1747827085777,-6149.49,0.00035342,5]
[361836136,1747827085788,-1097.74,0.00035342,5]
[361836137,1747827085802,-879.61,0.00035342,5]
[361836138,1747827085814,-420.0,0.00035342,5]
[361836139,1747827085824,-1674.91,0.00035342,5]
[361836140,1747827085834,-1406.72,0.00035342,5]
[361836141,1747827085844,-867.9,0.00035342,5]
[361836142,1747827085855,-526.8,0.00035342,5]
[361836143,1747827085866,-420.0,0.00035342,5]
[361836144,1747827085877,-950.88,0.00035342,5]
[361836145,1747827085887,-882.4,0.00035342,5]
[361836146,1747827085899,-800.16,0.00035342,5]
[361836147,1747827085911,-504.22,0.00035342,5]
[361836148,1747827085922,-1081.43,0.00035342,5]
[361836149,1747827085933,-460.09,0.00035342,5]
[361836150,1747827085944,-3043.74,0.00035342,5]
[361836151,1747827085958,-3632.54,0.00035342,5]
[361836152,1747827085968,-1270.86,0.00035342,5]
[361836153,1747827085979,-1956.56,0.00035342,5]
[361836154,1747827085989,-930.2,0.00035342,5]
[361836155,1747827086000,-420.0,0.00035342,5]
[361836156,1747827086011,-420.0,0.00035342,5]
[361836157,1747827086021,-2005.74,0.00035342,5]
[361836158,1747827086032,-449.4,0.00035342,5]
[361836159,1747827086042,-420.0,0.00035342,5]
[361836160,1747827086053,-420.0,0.00035342,5]
[361836161,1747827086063,-1347.5,0.00035342,5]
[361836162,1747827086074,-607.7,0.00035342,5]
[361836163,1747827086084,-1108.97,0.00035342,5]
[361836164,1747827086095,-602.41,0.00035342,5]
[361836165,1747827086106,-420.0,0.00035342,5]
[361836166,1747827086116,-566.38,0.00035342,5]
[361836167,1747827086126,-908.79,0.00035342,5]
[361836168,1747827086138,-420.0,0.00035342,5]
[361836169,1747827086148,-199.67798077,0.00035342,5]
[361836170,1747827086159,-420.0,0.00035342,5]
[361836171,1747827086171,-470.13,0.00035342,5]
[361836172,1747827086181,-420.0,0.00035342,5]
[361836173,1747827086191,-684.18,0.00035342,5]
[361836174,1747827086202,-420.0,0.00035342,5]
[361836175,1747827086213,-420.0,0.00035342,5]
[361836176,1747827086223,-511.84,0.00035342,5]
[361836177,1747827086234,-420.0,0.00035342,5]
[361836178,1747827086244,-420.0,0.00035342,5]
[361836179,1747827086254,-151.0,0.00035342,7]
[361836180,1747827086264,-420.0,0.00035342,5]
[361836181,1747827086275,-4969.67,0.00035342,5]
[361836182,1747827086285,-420.0,0.00035342,5]
[361836183,1747827086296,-1780.73,0.00035342,5]
[361836184,1747827086306,-420.0,0.00035342,5]
[361836185,1747827086316,-151.0,0.00035342,7]
[361836186,1747827086327,-151.0,0.00035342,7]
[361836187,1747827086337,-2063.59,0.00035342,5]
[361836188,1747827086347,-866.09,0.00035342,5]
[361836189,1747827086358,-420.0,0.00035342,5]
[361836190,1747827086369,-420.0,0.00035342,5]
[361836191,1747827086380,-420.0,0.00035342,5]
[361836192,1747827086390,-420.0,0.00035342,5]
[361836193,1747827086400,-593.02,0.00035342,5]
[361836194,1747827086411,-1691.23,0.00035342,5]
[361836195,1747827086422,-823.81,0.00035342,5]
[361836196,1747827086432,-1222.13,0.00035342,5]
[361836197,1747827086444,-420.0,0.00035342,5]
[361836198,1747827086455,-632.72,0.00035342,5]
[361836199,1747827086466,-420.0,0.00035342,5]
[361836200,1747827086476,-1212.6,0.00035342,5]
[361836201,1747827086488,-899.54,0.00035342,5]
[361836202,1747827086498,-553.14,0.00035342,5]
[361836203,1747827086508,-420.0,0.00035342,5]
[361836204,1747827086519,-14631.66,0.00035342,5]
[361836205,1747827086530,-420.0,0.00035342,5]
[361836206,1747827086540,-2455.33,0.00035342,5]
[361836207,1747827086551,-687.17,0.00035342,5]
[361836208,1747827086562,-510.0,0.00035342,5]
[361836209,1747827086572,-1819.43,0.00035342,5]
[361836210,1747827086583,-737.01,0.00035342,5]
[361836211,1747827086593,-570.3,0.00035342,5]
[361836212,1747827086604,-3896.68,0.00035342,5]
[361836213,1747827086615,-420.0,0.00035342,5]
[361836214,1747827086625,-539.51,0.00035342,5]
[361836215,1747827086636,-1414.29,0.00035342,5]
[361836216,1747827086646,-3151.73,0.00035342,5]
[361836217,1747827086657,-14144.26,0.00035342,5]
[361836218,1747827086667,-8547.26,0.00035342,5]
[361836219,1747827086678,-420.0,0.00035342,5]
[361836220,1747827086688,-4415.45,0.00035342,5]
[361836221,1747827086699,-1230.64,0.00035342,5]
[361836222,1747827086710,-1703.83,0.00035342,5]
[361836223,1747827086725,-555.55,0.00035342,5]
[361836224,1747827086736,-216.39147048,0.00035342,5]
[361836225,1747827086747,-6937.33,0.00035342,5]
[361836226,1747827086759,-310.81922699,0.00035342,5]
[361836227,1747827086770,-166.09495914,0.00035342,5]
[361836228,1747827086781,-15406.07,0.00035342,5]
[361836229,1747827086792,-634.69,0.00035342,5]
[361836230,1747827086802,-1151.78,0.00035342,5]
[361836231,1747827086813,-29896.52,0.00035342,5]
[361836232,1747827086824,-7119.22,0.00035342,5]
[361836233,1747827086835,-4554.6,0.00035342,5]
[361836234,1747827086846,-453.24,0.00035342,5]
[361836235,1747827086860,-923.2,0.00035342,5]
[361836236,1747827086871,-1187.43,0.00035342,5]
[361836237,1747827086883,-735.32,0.00035342,5]
[361836238,1747827086893,-1687.56,0.00035342,5]
[361836239,1747827086904,-1027.32,0.00035342,5]
[361836240,1747827086914,-420.0,0.00035342,5]
[361836241,1747827086925,-422.99,0.00035342,5]
[361836242,1747827086936,-2411.69,0.00035342,5]
[361836243,1747827086947,-420.0,0.00035342,5]
[361836244,1747827086958,-1168.04,0.00035342,5]
[361836245,1747827086968,-2041.94,0.00035342,5]
[361836246,1747827086979,-987.93,0.00035342,5]
[361836247,1747827086990,-1081.8,0.00035342,5]
[361836248,1747827087000,-1021.78,0.00035342,5]
[361836249,1747827087010,-990.58,0.00035342,5]
[361836250,1747827087021,-836.48,0.00035342,5]
[361836251,1747827087031,-420.0,0.00035342,5]
[361836252,1747827087041,-1734.22,0.00035342,5]
[361836253,1747827087053,-3677.77,0.00035342,5]
[361836254,1747827087064,-1825.28,0.00035342,5]
[361836255,1747827087074,-221.79099145,0.00035342,5]
[361836256,1747827087084,-3633.83,0.00035342,5]
[361836257,1747827087094,-420.0,0.00035342,5]
[361836258,1747827087104,-420.0,0.00035342,5]
[361836259,1747827087114,-593.9,0.00035342,5]
[361836260,1747827087124,-5549.41,0.00035342,5]
[361836261,1747827087135,-420.0,0.00035342,5]
[361836262,1747827087145,-151.0,0.00035342,7]
[361836263,1747827087156,-638.11,0.00035342,2]
[361836264,1747827087168,-420.0,0.00035342,5]
[361836265,1747827087179,-2012.33,0.00035342,5]
[361836266,1747827087191,-151.0,0.00035342,7]
[361836267,1747827087201,-2891.24,0.00035342,5]
[361836268,1747827087212,-420.0,0.00035342,5]
[361836269,1747827087222,-420.0,0.00035342,5]
[361836270,1747827087232,-3346.56,0.00035342,5]
[361836271,1747827087243,-709.25,0.00035342,5]
[361836272,1747827087254,-420.0,0.00035342,5]
[361836273,1747827087264,-420.0,0.00035342,5]
[361836274,1747827087275,-420.63,0.00035342,5]
[361836275,1747827087287,-177.32197005,0.00035342,5]
[361836276,1747827087297,-1095.31,0.00035342,5]
[361836277,1747827087309,-470.99,0.00035342,5]
[361836278,1747827087320,-451.82,0.00035342,5]
[361836279,1747827087330,-426.33,0.00035342,5]
[361836280,1747827087342,-1236.71,0.00035342,5]
[361836281,1747827087353,-2495.64,0.00035342,5]
[361836282,1747827087363,-420.0,0.00035342,5]
[361836283,1747827087374,-420.0,0.00035342,5]
[361836284,1747827087384,-420.0,0.00035342,5]
[361836285,1747827087394,-1160.66,0.00035342,5]
[361836286,1747827087405,-4059.65,0.00035342,5]
[361836287,1747827087415,-563.85227194,0.00035342,5]
[361836288,1747827087426,-561.7,0.00035342,5]
[361836289,1747827087437,-420.0,0.00035342,5]
[361836290,1747827087447,-6775.14,0.00035342,5]
[361836291,1747827087459,-3582.79,0.00035342,5]
[361836292,1747827087471,-304.72465248,0.00035342,2]
[361836293,1747827087482,-477.4,0.00035342,5]
[361836294,1747827087499,-420.0,0.00035342,5]
[361836295,1747827087886,-284.37589955,0.00035342,5]
[361836296,1747827087896,-1722.63,0.00035342,5]
[361836297,1747827087907,-420.0,0.00035342,5]
[361836298,1747827087917,-1654.14,0.00035342,5]
[361836299,1747827087927,-1143.17,0.00035342,5]
[361836300,1747827087936,-567.49,0.00035342,5]
[361836301,1747827087947,-471.02,0.00035342,5]
[361836302,1747827087958,-933.58,0.00035342,5]
[361836303,1747827087968,-2021.44,0.00035342,5]
[361836304,1747827087978,-420.0,0.00035342,5]
[361836305,1747827087988,-420.0,0.00035342,5]
[361836306,1747827087998,-4350.06,0.00035342,5]
[361836307,1747827088008,-814.46,0.00035342,5]
[361836308,1747827088018,-749.3,0.00035342,5]
[361836309,1747827088028,-801.9,0.00035342,5]
[361836310,1747827088038,-150.212,0.00035358,2]
[361836311,1747827088048,-269.796,0.00035358,2]
[361836312,1747827088058,-274.452,0.00035358,2]
[361836313,1747827088067,-192.836,0.00035358,2]
[361836314,1747827088077,-1440.78947445,0.00035516,2]
[361836315,1747827088087,-231.28369723,0.00035533,2]
[361836316,1747827088097,-5800.0,0.0003557,2]
[361836317,1747827088106,-1235.64,0.00035616,5]
[361836318,1747827088116,-62023.31948184,0.00035616,2]
[361836319,1747827088126,-420.0,0.00035616,5]
[361836320,1747827088136,-420.0,0.00035616,5]
[361836321,1747827088146,-852.08,0.00035616,5]
[361836322,1747827088156,-838.29,0.00035616,5]
[361836323,1747827088166,-756.34,0.00035616,5]
[361836324,1747827088177,-456.81,0.00035616,5]
[361836325,1747827088188,-420.0,0.00035616,5]
[361836326,1747827088197,-480.11,0.00035616,5]
[361836327,1747827088207,-420.0,0.00035616,5]
[361836328,1747827088216,-420.0,0.00035616,5]
[361836329,1747827088226,-803.54,0.00035616,5]
[361836330,1747827088236,-1218.18,0.00035616,5]
[361836331,1747827088246,-942.88,0.00035616,5]
[361836332,1747827088255,-797.13,0.00035616,5]
[361836333,1747827088265,-420.0,0.00035616,5]
[361836334,1747827088275,-420.0,0.00035616,5]
[361836335,1747827088285,-1263.34,0.00035616,5]
[361836336,1747827088295,-420.0,0.00035616,5]
[361836337,1747827088305,-420.0,0.00035616,5]
[361836338,1747827088315,-599.61,0.00035616,5]
[361836339,1747827088325,-1887.18,0.00035616,5]
[361836340,1747827088335,-537.6,0.00035616,5]
[361836341,1747827088347,-420.0,0.00035616,5]
[361836342,1747827088357,-504.73659527,0.00035616,5]
[361836343,1747827088367,-995.6,0.00035616,5]
[361836344,1747827088377,-420.0,0.00035616,5]
[361836345,1747827088387,-507.63005385,0.00035616,5]
[361836346,1747827088397,-692.22,0.00035616,5]
[361836347,1747827088407,-420.0,0.00035616,5]
[361836348,1747827088418,-584.19,0.00035616,5]
[361836349,1747827088430,-420.0,0.00035616,5]
[361836350,1747827088441,-420.0,0.00035616,5]
[361836351,1747827088451,-847.72,0.00035616,5]
[361836352,1747827088460,-674.03,0.00035616,5]
[361836353,1747827088470,-420.0,0.00035616,5]
[361836354,1747827088479,-627.96,0.00035616,5]
[361836355,1747827088490,-420.0,0.00035616,5]
[361836356,1747827088500,-524.74,0.00035616,5]
[361836357,1747827088510,-420.0,0.00035616,5]
[361836358,1747827088520,-1128.54,0.00035616,5]
[361836359,1747827088530,-814.71,0.00035616,5]
[361836360,1747827088540,-1370.32,0.00035616,5]
[361836361,1747827088550,-420.0,0.00035616,5]
[361836362,1747827088560,-574.94,0.00035616,5]
[361836363,1747827088570,-455.14,0.00035616,5]
[361836364,1747827088581,-1337.7,0.00035616,5]
[361836365,1747827088592,-478.34,0.00035616,5]
[361836366,1747827088602,-420.0,0.00035616,5]
[361836367,1747827088612,-504.02,0.00035616,5]
[361836368,1747827088622,-565.8,0.00035616,5]
[361836369,1747827088632,-728.55,0.00035616,5]
[361836370,1747827088642,-420.0,0.00035616,5]
[361836371,1747827088652,-732.9,0.00035616,5]
[361836372,1747827088662,-390.52543557,0.00035616,5]
[361836373,1747827088672,-1165.23,0.00035616,5]
[361836374,1747827088682,-1378.94,0.00035616,5]
[361836375,1747827088692,-2721.26,0.00035616,5]
[361836376,1747827088702,-1472.56,0.00035616,5]
[361836377,1747827088713,-342.53420713,0.00035616,5]
[361836378,1747827088727,-815.36,0.00035616,5]
[361836379,1747827088736,-420.0,0.00035616,5]
[361836380,1747827088747,-3421.67,0.00035616,5]
[361836381,1747827088757,-420.0,0.00035616,5]
[361836382,1747827088768,-420.0,0.00035616,5]
[361836383,1747827088779,-2581.6,0.00035616,5]
[361836384,1747827088790,-3315.32,0.00035616,5]
[361836385,1747827088802,-1137.48,0.00035616,5]
[361836386,1747827088812,-1399.99,0.00035616,5]
[361836387,1747827088823,-2580.06,0.00035616,5]
[361836388,1747827088833,-594.98,0.00035616,5]
[361836389,1747827088843,-1980.3,0.00035616,5]
[361836390,1747827088853,-2964.03,0.00035616,5]
[361836391,1747827088863,-420.0,0.00035616,5]
[361836392,1747827088873,-420.0,0.00035616,5]
[361836393,1747827088883,-461.83,0.00035616,5]
[361836394,1747827088893,-1561.77,0.00035616,5]
[361836395,1747827088903,-420.0,0.00035616,5]
[361836396,1747827088914,-950.46,0.00035616,5]
[361836397,1747827088923,-1769.8,0.00035616,5]
[361836398,1747827088935,-498.42,0.00035616,5]
[361836399,1747827088946,-1036.55,0.00035616,5]
[361836400,1747827088956,-934.39,0.00035616,5]
[361836401,1747827088966,-3529.11,0.00035616,5]
[361836402,1747827088976,-1927.57,0.00035616,5]
[361836403,1747827088986,-1266.55,0.00035616,5]
[361836404,1747827088996,-1455.7,0.00035616,5]
[361836405,1747827089006,-2836.71,0.00035616,5]
[361836406,1747827089017,-760.46,0.00035616,5]
[361836407,1747827089027,-1060.83,0.00035616,5]
[361836408,1747827089038,-6149.49,0.00035616,5]
[361836409,1747827089047,-1097.74,0.00035616,5]
[361836410,1747827089057,-879.61,0.00035616,5]
[361836411,1747827089067,-420.0,0.00035616,5]
[361836412,1747827089078,-1674.91,0.00035616,5]
[361836413,1747827089087,-1406.72,0.00035616,5]
[361836414,1747827089098,-867.9,0.00035616,5]
[361836415,1747827089108,-526.8,0.00035616,5]
[361836416,1747827089118,-420.0,0.00035616,5]
[361836417,1747827089128,-950.88,0.00035616,5]
[361836418,1747827089138,-882.4,0.00035616,5]
[361836419,1747827089148,-800.16,0.00035616,5]
[361836420,1747827089158,-504.22,0.00035616,5]
[361836421,1747827089169,-1081.43,0.00035616,5]
[361836422,1747827089181,-460.09,0.00035616,5]
[361836423,1747827089191,-3043.74,0.00035616,5]
[361836424,1747827089202,-3632.54,0.00035616,5]
[361836425,1747827089212,-1270.86,0.00035616,5]
[361836426,1747827089222,-1956.56,0.00035616,5]
[361836427,1747827089232,-930.2,0.00035616,5]
[361836428,1747827089243,-420.0,0.00035616,5]
[361836429,1747827089253,-420.0,0.00035616,5]
[361836430,1747827089263,-2005.74,0.00035616,5]
[361836431,1747827089272,-420.0,0.00035616,5]
[361836432,1747827089283,-420.0,0.00035616,5]
[361836433,1747827089292,-1347.5,0.00035616,5]
[361836434,1747827089302,-607.7,0.00035616,5]
[361836435,1747827089312,-1108.97,0.00035616,5]
[361836436,1747827089322,-602.41,0.00035616,5]
[361836437,1747827089332,-420.0,0.00035616,5]
[361836438,1747827089342,-566.38,0.00035616,5]
[361836439,1747827089352,-908.79,0.00035616,5]
[361836440,1747827089362,-420.0,0.00035616,5]
[361836441,1747827089372,-420.0,0.00035616,5]
[361836442,1747827089382,-470.13,0.00035616,5]
[361836443,1747827089392,-420.0,0.00035616,5]
[361836444,1747827089402,-684.18,0.00035616,5]
[361836445,1747827089413,-420.0,0.00035616,5]
[361836446,1747827089423,-420.0,0.00035616,5]
[361836447,1747827089433,-511.84,0.00035616,5]
[361836448,1747827089443,-420.0,0.00035616,5]
[361836449,1747827089453,-159.91206224,0.00035616,5]
[361836450,1747827089464,-420.0,0.00035616,5]
[361836451,1747827089474,-4969.67,0.00035616,5]
[361836452,1747827089484,-420.0,0.00035616,5]
[361836453,1747827089495,-1780.73,0.00035616,5]
[361836454,1747827089506,-420.0,0.00035616,5]
[361836455,1747827089517,-2063.59,0.00035616,5]
[361836456,1747827089528,-866.09,0.00035616,5]
[361836457,1747827089539,-420.0,0.00035616,5]
[361836458,1747827089550,-420.0,0.00035616,5]
[361836459,1747827089562,-420.0,0.00035616,5]
[361836460,1747827089572,-519.72749025,0.00035616,5]
[361836461,1747827089582,-593.02,0.00035616,5]
[361836462,1747827089592,-1691.23,0.00035616,5]
[361836463,1747827089604,-823.81,0.00035616,5]
[361836464,1747827089614,-1222.13,0.00035616,5]
[361836465,1747827089624,-420.0,0.00035616,5]
[361836466,1747827089634,-632.72,0.00035616,5]
[361836467,1747827089644,-420.0,0.00035616,5]
[361836468,1747827089656,-1212.6,0.00035616,5]
[361836469,1747827089666,-899.54,0.00035616,5]
[361836470,1747827089676,-553.14,0.00035616,5]
[361836471,1747827089688,-363.56209738,0.00035616,5]
[361836472,1747827089698,-14631.66,0.00035616,5]
[361836473,1747827089711,-420.0,0.00035616,5]
[361836474,1747827089722,-2455.33,0.00035616,5]
[361836475,1747827089732,-687.17,0.00035616,5]
[361836476,1747827089742,-510.0,0.00035616,5]
[361836477,1747827089752,-1819.43,0.00035616,5]
[361836478,1747827089763,-737.01,0.00035616,5]
[361836479,1747827089774,-570.3,0.00035616,5]
[361836480,1747827089784,-3896.68,0.00035616,5]
[361836481,1747827089796,-420.0,0.00035616,5]
[361836482,1747827089807,-539.51,0.00035616,5]
[361836483,1747827089817,-1414.29,0.00035616,5]
[361836484,1747827089827,-3151.73,0.00035616,5]
[361836485,1747827089837,-14144.26,0.00035616,5]
[361836486,1747827089848,-8547.26,0.00035616,5]
[361836487,1747827089858,-420.0,0.00035616,5]
[361836488,1747827089868,-4415.45,0.00035616,5]
[361836489,1747827089878,-1230.64,0.00035616,5]
[361836490,1747827089888,-1703.83,0.00035616,5]
[361836491,1747827089898,-555.55,0.00035616,5]
[361836492,1747827089908,-6937.33,0.00035616,5]
[361836493,1747827089919,-15406.07,0.00035616,5]
[361836494,1747827089932,-634.69,0.00035616,5]
[361836495,1747827089942,-1151.78,0.00035616,5]
[361836496,1747827089952,-29896.52,0.00035616,5]
[361836497,1747827089962,-7119.22,0.00035616,5]
[361836498,1747827089972,-4554.6,0.00035616,5]
[361836499,1747827089982,-453.24,0.00035616,5]
[361836500,1747827089994,-923.2,0.00035616,5]
[361836501,1747827090005,-1187.43,0.00035616,5]
[361836502,1747827090015,-735.32,0.00035616,5]
[361836503,1747827090025,-1687.56,0.00035616,5]
[361836504,1747827090035,-1027.32,0.00035616,5]
[361836505,1747827090044,-422.99,0.00035616,5]
[361836506,1747827090054,-350.90951134,0.00035616,5]
[361836507,1747827090065,-2411.69,0.00035616,5]
[361836508,1747827090075,-420.0,0.00035616,5]
[361836509,1747827090085,-1168.04,0.00035616,5]
[361836510,1747827090095,-2041.94,0.00035616,5]
[361836511,1747827090105,-987.93,0.00035616,5]
[361836512,1747827090115,-1081.8,0.00035616,5]
[361836513,1747827090125,-1021.78,0.00035616,5]
[361836514,1747827090135,-990.58,0.00035616,5]
[361836515,1747827090145,-836.48,0.00035616,5]
[361836516,1747827090155,-420.0,0.00035616,5]
[361836517,1747827090165,-1734.22,0.00035616,5]
[361836518,1747827090175,-3677.77,0.00035616,5]
[361836519,1747827090185,-1825.28,0.00035616,5]
[361836520,1747827090196,-3633.83,0.00035616,5]
[361836521,1747827090205,-420.0,0.00035616,5]